Cogmind - Beta 9.4 @@@ ROGUE MODE // 2020.02.21 @ 04:14:49 Player: Honkmo Jones Result: Destroyed by as-14689 with Assembled Rifle Performance ------------- Evolutions (0) 0 Regions Visited (2) 400 Robots Destroyed (20) 100 Value Destroyed (496) 496 Prototype IDs (2) 40 Alien Tech Used (0) 0 Bonus (0) 0 TOTAL SCORE: 1036 Bonus ------- None Cogmind --------- Core Integrity 0/250 Matter 262/300 Energy 43/100 System Corruption 16% Temperature Cool (2) Movement Walking (120) Location -10/Mines Parts ------- > --- POWER (1) -------- (None) > --- PROPULSION (2) --- Aluminum Leg Aluminum Leg > --- UTILITY (2) ------ Improved Heat Sink Structural Scanner > --- WEAPON (2) ------- (None) > --- INVENTORY (4) ---- (None) Peak State ------------ > --- POWER ------------ Ion Engine > --- PROPULSION ------- Aluminum Leg Aluminum Leg > --- UTILITY ---------- Improved Heat Sink Small Storage Unit > --- WEAPON ----------- Particle Gun Light Assault Rifle > --- INVENTORY -------- Aluminum Leg Aluminum Leg Wheel [Rating: 10] Favorites ----------- Power Light Ion Engine Engine Light Ion Engine Power Core Light Nuclear Core Propulsion Aluminum Leg Leg Aluminum Leg Wheel Compact Wheel Utility Sensor Array Device Sensor Array Storage Small Storage Unit Processor Signal Interpreter Weapon Light Assault Rifle Energy Gun Medium Laser Energy Cannon Beam Cannon Ballistic Gun Light Assault Rifle Ballistic Cannon Light Cannon Special Weapon Mining Laser Build | -11 -10 -10 ------- Run | Scr Mat Min Slots Evolved . | . . . Power . | . . . Propulsion . | . . . Utility . | . . . Weapon . | . . . Parts Attached 38 | 9 23 6 Power 7 | 2 4 1 Engine 6 | 2 3 1 Core 1 | . 1 . Reactor . | . . . Propulsion 12 | 4 6 2 Treads . | . . . Leg 10 | 2 6 2 Wheel 2 | 2 . . Hover . | . . . Flight . | . . . Utility 9 | 1 7 1 Device 6 | . 5 1 Storage 1 | 1 . . Processor 2 | . 2 . Hackware . | . . . Protection . | . . . Artifact . | . . . Weapon 10 | 2 6 2 Energy Gun 4 | 1 3 . Energy Cannon 1 | . . 1 Ballistic Gun 3 | 1 2 . Ballistic Cannon 1 | . . 1 Launcher . | . . . Special Weapon 1 | . 1 . Impact Weapon . | . . . Slashing Weapon . | . . . Piercing Weapon . | . . . Special Melee Weapon . | . . . Unidentified Prototypes . | . . . Parts Lost 11 | . 5 6 Power 1 | . . 1 Propulsion 2 | . . 2 Utility 2 | . 1 1 Weapon 6 | . 4 2 Highest Loss Streak 6 | . 2 6 Average Slot Usage (%) 95 | . 96 89 Engine 12 | . 12 7 Core 1 | . 1 4 Leg 27 | . 27 25 Device 19 | . 18 26 Processor 6 | . 7 . Energy Gun 11 | . 12 . Energy Cannon 1 | . . 10 Ballistic Gun 11 | . 13 . Ballistic Cannon 1 | . . 11 Naked Turns . | . . . Heaviest Build 14 | 12 14 13 Greatest Support 26 | 26 20 20 Greatest Overweight (x) . | . . . Average Overweight (x) . | . . . Largest Inventory Capacity 6 | 6 6 4 Average Capacity 4 | 4 4 4 Most Carried 5 | 4 5 4 Average Carried 3 | 2 3 3 Final Capacity 6 | 6 4 4 Final Carried 4 | 2 4 . Class Distribution -------------------- 69% | Scavenger-Mutant 30% | Mutant Dominant Class ---------------- Scavenger-Mutant | -10/Materials Scavenger-Mutant | -10/Mines Resources | -11 -10 -10 ----------- Run | Scr Mat Min Matter Collected 747 | 249 423 75 Remotely . | . . . Salvage Created 646 | . 604 42 Parts 56 | . 50 6 Haulers Intercepted 1 | . 1 . Recyclers Shooed . | . . . Parts Field Recycled . | . . . Retrieved Matter . | . . . Parts Self-Destructed . | . . . Prevented . | . . . Kills | -11 -10 -10 ------- Run | Scr Mat Min Combat Hostiles Destroyed 16 | . 15 1 Guns 15 | . 15 . Cannons 1 | . . 1 Classes Destroyed 5 | . 4 1 Worker 1 | . . 1 Hauler 1 | . 1 . Watcher 2 | . 2 . Swarmer 4 | . 3 1 Grunt 12 | . 12 . Best Kill Streak 3 | . 3 1 Combat Bots Only 3 | . 3 1 Max Kills in Single Turn 1 | . 1 1 Gunslinging . | . . . Exploded . | . . . Melee . | . . . Uniques/NPCs Destroyed . | . . . Combat | -11 -10 -10 -------- Run | Scr Mat Min Damage Taken 1315 | . 870 445 Core 259 | . 122 137 Absorbed by Shields . | . . . Core Remaining (%) 100 | 100 . . Volleys Fired 83 | . 71 12 Largest 2 | . 2 2 Hottest 95 | . 85 95 Shots Fired 146 | . 126 20 Gun 126 | . 126 . Cannon 20 | . . 20 Launcher . | . . . Special . | . . . Kinetic 78 | . 66 12 Thermal 60 | . 52 8 Explosive . | . . . Electromagnetic 8 | . 8 . Robot Hit Streak 9 | . 9 2 Robot Miss Streak 6 | . 6 4 Penetration Max . | . . . Secondary Targets 2 | . 2 . Max Gunslinging Chain 1 | . 1 . Shots Hit Robots 79 | . 72 7 Core Hits 36 | . 33 3 Critical Hits . | . . . Critical Kills . | . . . Critical Parts Destroyed . | . . . Melee Attacks . | . . . Impact . | . . . Slashing . | . . . Piercing . | . . . Sneak Attacks . | . . . Combat Hostiles . | . . . Follow-up Attacks . | . . . Damage Inflicted 1029 | . 910 119 Guns 910 | . 910 . Cannons 119 | . . 119 Explosions . | . . . Melee . | . . . Ramming . | . . . Kinetic 477 | . 411 66 Thermal 482 | . 429 53 Explosive . | . . . Electromagnetic 70 | . 70 . Impact . | . . . Slashing . | . . . Piercing . | . . . Highest Corruption 16 | . 3 16 Average Corruption 3 | . 2 5 Corruption Purged . | . . . Effects 31 | . 26 5 Message Errors 6 | . 6 . Matter Fused 11 | . 8 3 Heat Flow Errors 3 | . 2 1 Energy Discharges 4 | . 4 . Data Loss (minor) 2 | . 1 1 Targeting Errors 5 | . 5 . Overload Shots . | . . . Overflow Damage . | . . . Projectiles . | . . . Explosions . | . . . Melee . | . . . Knockbacks 1 | . . 1 Impact . | . . . Kinetic 1 | . . 1 Secondary . | . . . Self-Inflicted Damage . | . . . Shots . | . . . Rammed . | . . . Targets Rammed . | . . . Kicked . | . . . Crushed . | . . . Highest Temperature 238 | . 238 161 Average Temperature 63 | . 65 55 Received Heat Transfer 497 | . 357 140 Siege Activations . | . . . Robots Corrupted . | . . . Combat Hostiles . | . . . Parts Fried . | . . . Impact Corruptions . | . . . Robots Melted . | . . . Combat Hostiles . | . . . Parts Melted 2 | . 2 . Heat Transferred 1283 | . 1172 111 Parts Sabotaged . | . . . Parts Stolen . | . . . Parts Stripped . | . . . Power Chain Reactions . | . . . Missiles Intercepted . | . . . Alert | -11 -10 -10 ------- Run | Scr Mat Min Peak Influence 204 | . 204 64 Average Influence 53 | . 58 43 Maximum Alert Level 1 | . 1 . Low Security (%) 99 | 100 99 100 Level 1 . | . . . Level 2 . | . . . Level 3 . | . . . Level 4 . | . . . Level 5 . | . . . High Security . | . . . Max Security . | . . . Squads Dispatched 6 | . 6 . Investigation 6 | . 6 . Extermination . | . . . Reinforcement . | . . . Assault . | . . . Garrison . | . . . Intercept . | . . . Construction Impeded . | . . . Haulers Reinforced . | . . . Stealth | -11 -10 -10 --------- Run | Scr Mat Min Distress Signals . | . . . Communications Jammed . | . . . Distress Signals . | . . . Times Spotted 37 | . 31 6 Peak Tracking Total 5 | . 5 3 Tactical Retreats 1 | . . 1 Traps | -11 -10 -10 ------- Run | Scr Mat Min Traps Triggered 3 | . 3 . Indirectly . | . . . Trap Hack Attempts . | . . . Triggered . | . . . Disarmed . | . . . Reprogrammed . | . . . Reused . | . . . Traps Extracted . | . . . Installed . | . . . Triggered . | . . . Machines | -11 -10 -10 ---------- Run | Scr Mat Min Machines Disabled . | . . . Max in Single Turn . | . . . Machines Sabotaged . | . . . Garrisons Compromised . | . . . Overloaded Fab Kills . | . . . Fab Network Shutdowns . | . . . Hacking | -11 -10 -10 --------- Run | Scr Mat Min Machines Accessed 7 | . 7 . Terminals 6 | . 6 . Fabricators . | . . . Repair Stations 1 | . 1 . Recycling Units . | . . . Scanalyzers . | . . . Garrison Access . | . . . Total Hacks 28 | . 28 . Successful 18 | . 18 . Failed 10 | . 10 . Catastrophic . | . . . Database Lockouts . | . . . Manual . | . . . Terminals 23 | . 23 . Fabricators . | . . . Repair Stations 5 | . 5 . Recycling Units . | . . . Scanalyzers . | . . . Garrison Access . | . . . Terminal Hacks 14 | . 14 . Record 7 | . 7 . Prototype ID Bank 1 | . 1 . Alert Level 1 | . 1 . Locate Traps 3 | . 3 . Reinforcement Status 1 | . 1 . Zone Layout 1 | . 1 . Fabricator Hacks . | . . . Repair Station Hacks 4 | . 4 . Scan Component 2 | . 2 . Repair 2 | . 2 . Recycling Unit Hacks . | . . . Scanalyzer . | . . . Garrison Access Hacks . | . . . Unauthorized Hacks . | . . . Terminals . | . . . Fabricators . | . . . Repair Stations . | . . . Recycling Units . | . . . Scanalyzers . | . . . Garrison Access . | . . . Data Cores Recovered . | . . . Used . | . . . Hacking Detections 6 | . 6 . Full Trace Events 5 | . 5 . Feedback Events . | . . . Feedback Blocked . | . . . Robot Schematics Acquired . | . . . Robots Built . | . . . Matter . | . . . Time . | . . . Total Robot Build Rating . | . . . Part Schematics Acquired . | . . . Parts Built . | . . . Matter . | . . . Time . | . . . Total Part Build Rating . | . . . Parts Repaired 2 | . 2 . Time 52 | . 52 . Parts Recycled . | . . . Recycled Matter . | . . . Retrieved Matter . | . . . Retrieved Components . | . . . Parts Scanalyzed . | . . . Part Schematics Acquired . | . . . Parts Damaged . | . . . Bothacking | -11 -10 -10 ------------ Run | Scr Mat Min Used RIF Installer . | . . . Robots Hacked . | . . . Non-combat . | . . . Combat . | . . . Robot Hacks Applied . | . . . Relay Couplers Released . | . . . Robots Rewired . | . . . Allies Hacked . | . . . Hacks Repelled . | . . . Allies | -11 -10 -10 -------- Run | Scr Mat Min Total Allies . | . . . Largest Group . | . . . Highest-Rated Group . | . . . Highest-Rated Ally . | . . . Total Orders . | . . . Ally Attacks . | . . . Total Damage . | . . . Kills . | . . . Allies Corrupted . | . . . Allies Melted . | . . . Intel | -11 -10 -10 ------- Run | Scr Mat Min Robot Analysis Total . | . . . Derelict Logs Recovered . | . . . Drone Launches . | . . . Drone Recoveries . | . . . Exploration | -11 -10 -10 ------------- Run | Scr Mat Min Turns Passed 1635 | 76 1360 199 Spaces Moved 1037 | 61 848 128 Core 20 | 17 . 3 Treads . | . . . Legs 1010 | 37 848 125 Wheels 7 | 7 . . Hover . | . . . Flight . | . . . Fastest Speed 50 | 50 120 50 Average Speed 118 | 97 120 118 Slowest Speed 120 | 120 120 120 Overloaded Moves . | . . . Propulsion Burnouts . | . . . Robots Hopped . | . . . Cave-ins Triggered . | . . . Exploration Rate (%) 42 | 5 83 39 Regions Visited 2 Branch Regions 1 Pre-discovered Areas . | . . . Known Exits Taken 1 | . 1 . Unknown Exits Taken 1 | 1 . . Scrap Searched 2 | . . 2 Spaces Dug . | . . . Terrain Destroyed . | . . . Melee . | . . . Projectile . | . . . AOE . | . . . Actions | -11 -10 -10 --------- Run | Scr Mat Min Total 1302 | 76 1070 156 Wait 100 | . 94 6 Move 1035 | 60 847 128 Hop . | . . . Pick Up 26 | 6 19 1 Fast Attach 12 | 3 7 2 Attach 12 | 4 5 3 Detach . | . . . Swap 14 | 2 11 1 Drop 20 | 1 16 3 Fire 83 | . 71 12 Melee . | . . . Ram . | . . . Kick . | . . . Crush . | . . . Escape Stasis . | . . . Rewire . | . . . Trap . | . . . Miscellaneous . | . . . Route ------- -11/Scrapyard -10/Materials (discovered 5 exits: [*Mat x3] / *Min x2) -10/Mines History --------- Turn | Location | Event 15 | -11/Scrapyard | Discovered new exit (range 15) 77 | -11/Scrapyard | Entered Materials 262 | -10/Materials | Discovered new exit (range 7) 310 | -10/Materials | Build established: Mutant 680 | -10/Materials | Discovered new exit (range 15) 772 | -10/Materials | Build established: Scavenger-Mutant 790 | -10/Materials | Discovered new exit (range 13) 864 | -10/Materials | Identified exit to Mines 924 | -10/Materials | Discovered new exit (range 5) 1218 | -10/Materials | Discovered new exit (range 16) 1350 | -10/Materials | Repaired Assault Rifle 1376 | -10/Materials | Repaired Sensor Array 1437 | -10/Materials | Entered Mines 1446 | -10/Mines | Met a Derelict bent on vengeance 1482 | -10/Mines | Core integrity fell below 50% 1517 | -10/Mines | Assembled infested the area 1522 | -10/Mines | Assisted by a Guerilla fighting off Assembled 1601 | -10/Mines | System corruption reached 10% 1622 | -10/Mines | Core integrity fell below 20% 1636 | -10/Mines | Destroyed by as-14689 with Assembled Rifle Last Messages --------------- Beam Cannon destroyed. Aluminum Leg destroyed. System corrupted by crushing effect (+5). System corrupted by crushing effect (+4). Knocked back. as-25210 knocked back. [Achievement: System Compromised] System corrupted: Matter fused (-6). K-01 Serf collects debris. Sensor Array destroyed. System corrupted by crushing effect (+4). Knocked back. K-01 Serf collects debris. Knocked back. K-01 Serf collects debris. Lgt. Cannon destroyed. K-01 Serf destroyed. Lgt. Ion Engine destroyed. Aluminum Leg destroyed. System corrupted: Matter fused (-6). Map ----- +----------------------------------------------------+ | ??????????#######??????????????????? | | ??????????# ???????????????????? | | ########### #?????????????????????? | | !=% #?????????????????????? | | ########### #######???????????????? | | ?#???####?# #???????????????? | | ?# ## ## ##### #???????????????? | | ## # #?????????????????????? | | # = % ##????????????????????? | | %%* ##???????????????????? | | %= ####????????????????? | | ## ##???????????????? | | % #???????????????? | | # #???????????????? | | # ### #???????????????? | | # # #??# ### #???????????????? | | ?#????## #### #???????????????? | | ????????###?## #???????????????? | | ????????????# #???????????????? | | ???????????## #???????????????? | | ???????##### ##??????????????? | | ??????## #??????????????? | | ?????## *%= #???####???????? | | ?????# ##??## ##??????? | | ?????## ### ##???# #??????? | | ??????###??## # #???## @ #??????? | | ????????????#### #??## #??????? | | ???????????????# #?##a #??????? | | ???????????????# ### #??????? | | ??????????????##$ ## a #??????? | | ??????????????# a #?????? | | ????????????# #?????? | | ???????????# """ ##?????? | | ???????????# """ ####??????? | | ???????????# """ ##?????????? | | ???????????## ##??????????? | | ????????????### ##???????????? | | ??????????????#########????????????? | | ???????????????????????????????????? | | ???????????????????????????????????? | | ???????????????????????????????????? | | | | | | | | | | | | | | | | | | | +----------------------------------------------------+ Best States ------------- Heat Dissipation 39 Energy Generation 14 Energy Capacity 250 Matter Stores 300 Matter Capacity 300 Sight Range 16 Robot Scan Range 10 Terrain Scan Density 10 Evasion (%) 50 Item Schematics ----------------- None Robot Schematics ------------------ None Fabricated ------------ Nothing Alien Tech Used ----------------- None Achievements -------------- System Compromised Challenges ------------ None Game ------ Seed LatentWarpMultirail Manual? 0 Play Time 00:25:34 Cumulative 3.0 hours Start 2020.02.21 @ 03:50:13 End 2020.02.21 @ 04:14:49 Sessions 1 Manual Loads 0 Difficulty Rogue Special Mode None Game No. 10 Rogue 10 Adventurer 0 Explorer 0 Win Type - Total 0 Types 0/0/0/0/0/0/0 Lore% 5 Gallery% 9 Achievement% 8 Wizard Run 0 Options --------- ASCII 0 Keyboard 0 Movement Mouse Keybinds 0 Fullscreen 1 Font 12/Smallcaps Map View 83x54 Tactical HUD 0 Map Filters NONE Filters NONE Steam 1 RUN: 399afb52-82e2-4a72-9f7c-eacb53c4e249